fUSD/lending_fUSD_20250221
["ID","MTS","AMOUNT","RATE_DAILY","PERIOD"]
[353956075,1740166252758,-1697.94,0.00011041,2]
[353956076,1740166252771,-1197.61,0.00011041,2]
[353956077,1740166252780,-3380.57,0.00011041,2]
[353956078,1740166252790,-500.0,0.00011041,2]
[353956079,1740166252799,-500.0,0.00011041,2]
[353956080,1740166252809,-1630.15,0.00011041,2]
[353956081,1740166252818,-995.64,0.00011041,2]
[353956082,1740166252827,-500.0,0.00011041,2]
[353956083,1740166252836,-1523.48923082,0.00011099,2]
[353956084,1740166252845,-1523.48923082,0.00011099,2]
[353956085,1740166252854,-1523.48923082,0.00011099,2]
[353956086,1740166252863,-164.72318643,0.00011113,2]
[353956087,1740166252872,-200.0,0.00011116,2]
[353956088,1740166252881,-500.0,0.00011122,2]
[353956089,1740166252890,-500.0,0.00011122,2]
[353956090,1740166252903,-500.0,0.00011122,2]
[353956091,1740166252916,-500.0,0.00011122,2]
[353956092,1740166252926,-500.0,0.00011122,2]
[353956093,1740166252937,-500.73830749,0.00011123,2]
[353956094,1740166252946,-500.0,0.00011123,2]
[353956095,1740166252956,-268.90290818,0.00011123,2]
[353956096,1740166252965,-500.0,0.00011123,2]
[353956097,1740166252974,-500.0,0.00011123,2]
[353956098,1740166252983,-500.0,0.00011123,2]
[353956099,1740166252992,-500.0,0.00011123,2]
[353956100,1740166253001,-500.0,0.00011123,2]
[353956101,1740166253010,-500.0,0.00011123,2]
[353956102,1740166253019,-516.10462946,0.00011123,2]
[353956103,1740166253028,-500.0,0.00011123,2]
[353956104,1740166253037,-500.0,0.00011123,2]
[353956105,1740166253046,-500.0,0.00011123,2]
[353956106,1740166253055,-558.31,0.00011123,2]
[353956107,1740166253064,-500.0,0.00011123,2]
[353956108,1740166253073,-500.0,0.00011123,2]
[353956109,1740166253082,-643.11,0.00011123,2]
[353956110,1740166253091,-500.0,0.00011123,2]
[353956111,1740166253099,-500.0,0.00011123,2]
[353956112,1740166253108,-500.0,0.00011123,2]
[353956113,1740166253117,-500.0,0.00011123,2]
[353956114,1740166253126,-500.0,0.00011123,2]
[353956115,1740166253135,-500.0,0.00011123,2]
[353956116,1740166253144,-645.38,0.00011123,2]
[353956117,1740166253153,-500.0,0.00011123,2]
[353956118,1740166253163,-500.0,0.00011123,2]
[353956119,1740166253172,-500.0,0.00011123,2]
[353956120,1740166253181,-500.0,0.00011123,2]
[353956121,1740166253190,-500.0,0.00011123,2]
[353956122,1740166253200,-500.0,0.00011123,2]
[353956123,1740166253209,-500.0,0.00011123,2]
[353956124,1740166253218,-500.0,0.00011123,2]
[353956125,1740166253227,-500.0,0.00011123,2]
[353956126,1740166253237,-500.0,0.00011123,2]
[353956127,1740166253246,-500.0,0.00011123,2]
[353956128,1740166253255,-500.0,0.00011123,2]
[353956129,1740166253264,-500.0,0.00011123,2]
[353956130,1740166253274,-500.0,0.00011123,2]
[353956131,1740166253287,-500.0,0.00011123,2]
[353956132,1740166253296,-500.0,0.00011123,2]
[353956133,1740166253305,-500.0,0.00011123,2]
[353956134,1740166253315,-500.0,0.00011123,2]
[353956135,1740166253324,-500.0,0.00011123,2]
[353956136,1740166253334,-500.0,0.00011123,2]
[353956137,1740166253343,-553.19,0.00011123,2]
[353956138,1740166253352,-500.0,0.00011123,2]
[353956139,1740166253362,-500.0,0.00011123,2]
[353956140,1740166253371,-500.0,0.00011123,2]
[353956141,1740166253381,-500.0,0.00011123,2]
[353956142,1740166253390,-500.0,0.00011123,2]
[353956143,1740166253399,-500.0,0.00011123,2]
[353956144,1740166253408,-500.0,0.00011123,2]
[353956145,1740166253418,-500.0,0.00011123,2]
[353956146,1740166253427,-280.57555936,0.00011123,2]
[353956147,1740166253437,-500.0,0.00011123,2]
[353956148,1740166253447,-500.0,0.00011123,2]
[353956149,1740166253456,-557.41,0.00011123,2]
[353956150,1740166253466,-500.0,0.00011123,2]
[353956151,1740166253475,-372.00209497,0.00011123,2]
[353956152,1740166253484,-500.0,0.00011123,2]
[353956153,1740166253494,-500.0,0.00011123,2]
[353956154,1740166253503,-500.0,0.00011123,2]
[353956155,1740166253512,-500.0,0.00011123,2]
[353956156,1740166253520,-500.0,0.00011123,2]
[353956157,1740166253531,-500.0,0.00011123,2]
[353956158,1740166253541,-500.0,0.00011123,2]
[353956159,1740166253550,-648.96,0.00011123,2]
[353956160,1740166253559,-500.0,0.00011123,2]
[353956161,1740166253569,-500.0,0.00011123,2]
[353956162,1740166253578,-500.0,0.00011123,2]
[353956163,1740166253587,-500.0,0.00011123,2]
[353956164,1740166253596,-500.0,0.00011123,2]
[353956165,1740166253605,-633.22,0.00011123,2]
[353956166,1740166253615,-500.0,0.00011123,2]
[353956167,1740166253624,-997.07,0.00011123,2]
[353956168,1740166253634,-500.0,0.00011123,2]
[353956169,1740166253644,-500.0,0.00011123,2]
[353956170,1740166253653,-500.0,0.00011123,2]
[353956171,1740166253663,-500.0,0.00011123,2]
[353956172,1740166253672,-563.63,0.00011123,2]
[353956173,1740166253681,-500.0,0.00011123,2]
[353956174,1740166253691,-500.0,0.00011123,2]
[353956175,1740166253700,-500.0,0.00011123,2]
[353956176,1740166253709,-500.0,0.00011123,2]
[353956177,1740166253719,-592.78,0.00011123,2]
[353956178,1740166253728,-648.0,0.00011123,2]
[353956179,1740166253800,-500.0,0.00011123,2]
[353956180,1740166253809,-500.0,0.00011123,2]
[353956181,1740166253819,-500.0,0.00011123,2]
[353956182,1740166253828,-821.86,0.00011123,2]
[353956183,1740166253838,-500.0,0.00011123,2]
[353956184,1740166253847,-500.0,0.00011123,2]
[353956185,1740166253856,-500.0,0.00011123,2]
[353956186,1740166253865,-500.0,0.00011123,2]
[353956187,1740166253874,-500.0,0.00011123,2]
[353956188,1740166253883,-500.0,0.00011123,2]
[353956189,1740166253892,-500.0,0.00011123,2]
[353956190,1740166253901,-500.0,0.00011123,2]
[353956191,1740166253910,-827.92,0.00011123,2]
[353956192,1740166253919,-500.0,0.00011123,2]
[353956193,1740166253928,-500.0,0.00011123,2]
[353956194,1740166253938,-500.0,0.00011123,2]
[353956195,1740166253947,-500.0,0.00011123,2]
[353956196,1740166253956,-500.0,0.00011123,2]
[353956197,1740166253965,-500.0,0.00011123,2]
[353956198,1740166253975,-500.0,0.00011123,2]
[353956199,1740166253984,-500.0,0.00011123,2]
[353956200,1740166253993,-511.59645897,0.00011123,2]
[353956201,1740166254002,-115.182989,0.00011123,2]
[353956202,1740166254368,-391.487011,0.00011123,2]
[353956203,1740166254377,-279.95829014,0.00011123,2]
[353956204,1740166254389,-220.04170986,0.00011123,2]
[353956205,1740166254398,-410.95829023,0.00011123,2]
[353956206,1740166254409,-229.40170977,0.00011123,2]
[353956207,1740166254417,-407.29828443,0.00011123,2]
[353956208,1740166254444,-1012.40499672,0.00011123,2]
[353956209,1740166307092,250.0,0.0002,120]
[353956212,1740166512983,199.28334124,0.00020279,120]
[353956215,1740167204925,551.11,8.219e-05,2]
[353956216,1740167293646,2200.59,9.46e-05,2]
[353956219,1740167372251,888.0,9.509e-05,2]
[353956220,1740167413730,200.0,9.459e-05,2]
[353956241,1740167431404,-210.15775834,9.926e-05,2]
[353956242,1740167431415,-627.31,9.984e-05,2]
[353956243,1740167431428,-627.31,0.00010005,2]
[353956245,1740167431439,-831.65,0.00010019,2]
[353956247,1740167431450,-300.0,0.00010025,2]
[353956248,1740167431461,-391.69831826,0.00010026,2]
[353956249,1740167431562,-255.04718872,0.00010026,2]
[353956250,1740167431671,-1437.5,0.00010026,2]
[353956252,1740167431790,-863.0622,0.00010026,2]
[353956270,1740167437392,-8068.59623223,0.00010026,2]
[353956271,1740167437402,-627.31,0.00010026,2]
[353956272,1740167437412,-627.31,0.00010047,2]
[353956273,1740167437421,-627.31,0.00010068,2]
[353956274,1740167437433,-250.0,0.00010069,2]
[353956275,1740167437443,-311.41,0.00010071,2]
[353956276,1740167437452,-627.31,0.00010089,2]
[353956277,1740167437461,-1000.0,0.00010102,2]
[353956278,1740167437471,-627.31,0.0001011,2]
[353956279,1740167437479,-6562.53695488,0.00010114,2]
[353956280,1740167437491,-776.81304512,0.00010114,2]
[353956281,1740167437500,-204.09,0.00010118,2]
[353956282,1740167437509,-627.31,0.00010131,2]
[353956283,1740167437519,-271.1685256,0.00010137,2]
[353956284,1740167437528,-627.31,0.00010152,2]
[353956285,1740167437537,-627.31,0.00010174,2]
[353956286,1740167437547,-150.0,0.00010192,2]
[353956287,1740167437557,-627.31,0.00010195,2]
[353956288,1740167437566,-627.31,0.00010216,2]
[353956289,1740167437575,-627.31,0.00010237,2]
[353956290,1740167437585,-627.31,0.00010258,2]
[353956291,1740167437594,-586.94379247,0.00010279,2]
[353956292,1740167437613,-40.36620753,0.00010279,2]
[353956293,1740167437622,-627.31,0.000103,2]
[353956294,1740167437631,-285.62582382,0.00010321,2]
[353956295,1740167437643,-341.68417618,0.00010321,2]
[353956296,1740167437652,-627.31,0.00010342,2]
[353956297,1740167437662,-627.31,0.00010363,2]
[353956299,1740167437671,-627.31,0.00010384,2]
[353956300,1740167437684,-165.01,0.00010418,2]
[353956301,1740167437695,-551.11,0.00010449,2]
[353956302,1740167437705,-400.0,0.000106,3]
[353956303,1740167437714,-900.0,0.000107,3]
[353956305,1740167437723,-1300.0,0.000108,3]
[353956307,1740167437732,-495.91,0.00010868,2]
[353956308,1740167437742,-490.82,0.00010872,2]
[353956309,1740167437751,-502.2,0.00010878,2]
[353956310,1740167437761,-502.62,0.00010886,2]
[353956311,1740167437770,-150.0,0.00010887,2]
[353956313,1740167437780,-501.61,0.00010897,2]
[353956315,1740167437789,-1800.0,0.000109,3]
[353956317,1740167437798,-499.37,0.00010916,2]
[353956319,1740167437808,-492.11,0.00010957,2]
[353956321,1740167437817,-490.46,0.00010958,2]
[353956323,1740167437827,-500.0,0.00010958,2]
[353956326,1740167437836,-422.43189755,0.00010958,2]
[353956329,1740167437847,-77.56810245,0.00010958,2]
[353956332,1740167437856,-311.7892362,0.00010958,2]
[353956334,1740167437867,-188.2107638,0.00010958,2]
[353956336,1740167437877,-301.93619533,0.00010958,2]
[353956338,1740167437889,-198.06380467,0.00010958,2]
[353956340,1740167437898,-681.16,0.00010958,2]
[353956342,1740167437907,-500.0,0.00010958,2]
[353956343,1740167437916,-500.0,0.00010958,2]
[353956344,1740167437925,-42.19569533,0.00010958,2]
[353956345,1740167437965,-263.7635,0.00010958,2]
[353956346,1740167437977,-194.04080467,0.00010958,2]
[353956347,1740167437986,-500.0,0.00010958,2]
[353956348,1740167437996,-723.6,0.00010958,2]
[353956349,1740167438005,-1031.25,0.00010958,2]
[353956350,1740167438015,-500.0,0.00010958,2]
[353956351,1740167438023,-687.99,0.00010958,2]
[353956352,1740167438033,-500.0,0.00010958,2]
[353956353,1740167438042,-500.0,0.00010958,2]
[353956354,1740167438051,-500.0,0.00010958,2]
[353956355,1740167438060,-500.0,0.00010958,2]
[353956356,1740167438069,-500.0,0.00010958,2]
[353956357,1740167438079,-643.32,0.00010958,2]
[353956358,1740167438088,-758.78,0.00010958,2]
[353956359,1740167438096,-582.11,0.00010958,2]
[353956360,1740167438106,-500.0,0.00010958,2]
[353956361,1740167438115,-500.0,0.00010958,2]
[353956362,1740167438123,-500.0,0.00010958,2]
[353956363,1740167438132,-500.0,0.00010958,2]
[353956364,1740167438142,-500.0,0.00010958,2]
[353956365,1740167438151,-500.0,0.00010958,2]
[353956366,1740167438161,-500.0,0.00010958,2]
[353956367,1740167438171,-500.0,0.00010958,2]
[353956368,1740167438183,-555.11,0.00010958,2]
[353956369,1740167438192,-181.03364231,0.00010958,2]
[353956370,1740167438218,-549.41635769,0.00010958,2]
[353956371,1740167438228,-500.0,0.00010958,2]
[353956372,1740167438237,-500.0,0.00010958,2]
[353956373,1740167438246,-500.0,0.00010958,2]
[353956374,1740167438255,-438.60590806,0.00010958,2]
[353956375,1740167438266,-61.39409194,0.00010958,2]
[353956376,1740167438275,-500.0,0.00010958,2]
[353956377,1740167438284,-639.37,0.00010958,2]
[353956378,1740167438293,-644.32,0.00010958,2]
[353956379,1740167438302,-70.91590806,0.00010958,2]
[353956380,1740167438313,-429.08409194,0.00010958,2]
[353956381,1740167438322,-500.0,0.00010958,2]
[353956382,1740167438331,-338.41593806,0.00010958,2]
[353956383,1740167438353,-161.58406194,0.00010958,2]
[353956384,1740167438363,-831.04,0.00010958,2]
[353956385,1740167438372,-500.0,0.00010958,2]
[353956386,1740167438381,-500.0,0.00010958,2]
[353956387,1740167438390,-500.0,0.00010958,2]
[353956388,1740167438399,-500.0,0.00010958,2]
[353956389,1740167438408,-515.07,0.00010958,2]
[353956390,1740167438417,-625.71,0.00010958,2]
[353956391,1740167438426,-0.49345704,0.00010958,2]
[353956392,1740167438439,-499.50654296,0.00010958,2]
[353956393,1740167438448,-500.0,0.00010958,2]
[353956394,1740167438457,-848.84,0.00010958,2]
[353956395,1740167438466,-822.17,0.00010958,2]
[353956396,1740167438475,-745.81,0.00010958,2]
[353956397,1740167438484,-500.0,0.00010958,2]
[353956398,1740167438493,-500.0,0.00010958,2]
[353956399,1740167438502,-390.92243,0.00010958,2]
[353956400,1740167438514,-217.84325975,0.00010958,2]
[353956401,1740167438523,-240.69945216,0.00010958,2]
[353956402,1740167438535,-259.30054784,0.00010958,2]
[353956403,1740167438544,-500.0,0.00010958,2]
[353956404,1740167438553,-110.65426819,0.00010958,2]
[353956405,1740167438564,-389.34573181,0.00010958,2]
[353956406,1740167438573,-188.9028272,0.00010958,2]
[353956407,1740167438583,-372.52554524,0.00010958,2]
[353956408,1740167438592,-919.32,0.00010958,2]
[353956409,1740167438601,-344.30851434,0.00010958,2]
[353956410,1740167438623,-155.69148566,0.00010958,2]
[353956411,1740167438632,-500.0,0.00010958,2]
[353956412,1740167438641,-500.0,0.00010958,2]
[353956413,1740167438650,-500.0,0.00010958,2]
[353956414,1740167438659,-687.5,0.00010958,2]
[353956415,1740167438669,-500.0,0.00010958,2]
[353956416,1740167438679,-500.0,0.00010958,2]
[353956417,1740167438692,-503.01139517,0.00010958,2]
[353956418,1740167438703,-500.0,0.00010958,2]
[353956419,1740167438712,-500.0,0.00010958,2]
[353956420,1740167438721,-500.0,0.00010958,2]
[353956421,1740167438731,-500.0,0.00010958,2]
[353956422,1740167438741,-500.0,0.00010958,2]
[353956423,1740167438997,-500.0,0.00010958,2]
[353956424,1740167439009,-500.0,0.00010958,2]
[353956425,1740167439019,-500.0,0.00010958,2]
[353956426,1740167439028,-740.68,0.00010958,2]
[353956427,1740167439038,-500.0,0.00010958,2]
[353956428,1740167439047,-500.0,0.00010958,2]
[353956429,1740167439057,-905.88,0.00010958,2]
[353956430,1740167439067,-500.0,0.00010958,2]
[353956431,1740167439077,-500.0,0.00010958,2]
[353956432,1740167439086,-286.36745965,0.00010958,2]
[353956433,1740167439096,-500.0,0.00010958,2]
[353956434,1740167439105,-1098.49,0.00010958,2]
[353956435,1740167439114,-500.0,0.00010958,2]
[353956436,1740167439123,-500.0,0.00010958,2]
[353956437,1740167439132,-500.0,0.00010958,2]
[353956438,1740167439141,-857.44,0.00010958,2]
[353956439,1740167439150,-500.0,0.00010958,2]
[353956440,1740167439159,-500.0,0.00010958,2]
[353956441,1740167439169,-500.0,0.00010958,2]
[353956442,1740167439179,-500.0,0.00010958,2]
[353956443,1740167439189,-809.24,0.00010958,2]
[353956444,1740167439198,-524.92253881,0.00010958,2]
[353956445,1740167439207,-500.0,0.00010958,2]
[353956446,1740167439217,-500.0,0.00010958,2]
[353956447,1740167439226,-1426.84,0.00010958,2]
[353956448,1740167439235,-542.87,0.00010958,2]
[353956449,1740167439245,-754.01,0.00010958,2]
[353956450,1740167439254,-1331.51,0.00010958,2]
[353956451,1740167439265,-500.0,0.00010958,2]
[353956452,1740167439273,-500.0,0.00010958,2]
[353956453,1740167439282,-168.53212067,0.00010958,2]
[353956454,1740167439305,-130.35872791,0.00010958,2]
[353956455,1740167439681,-94.58318966,0.00010958,2]
[353956456,1740167439691,-500.0,0.00010958,2]
[353956457,1740167439700,-500.0,0.00010958,2]
[353956458,1740167439711,-99.37960432,0.00010958,2]
[353956459,1740167439723,-914.30039568,0.00010958,2]
[353956460,1740167439733,-953.54,0.00010958,2]
[353956461,1740167439743,-750.4,0.00010958,2]
[353956462,1740167439753,-17.96148433,0.00010958,2]
[353956463,1740167439764,-548.00952576,0.00010958,2]
[353956464,1740167439792,-121.44898991,0.00010958,2]
[353956465,1740167439801,-500.0,0.00010958,2]
[353956466,1740167439811,-738.46,0.00010958,2]
[353956467,1740167439820,-408.20260434,0.00010958,2]
[353956468,1740167439831,-921.06739566,0.00010958,2]
[353956469,1740167439840,-500.0,0.00010958,2]
[353956470,1740167439849,-1176.97,0.00010958,2]
[353956471,1740167439859,-923.81,0.00010958,2]
[353956472,1740167439868,-571.1,0.00010958,2]
[353956473,1740167439877,-615.92,0.00010958,2]
[353956474,1740167439886,-500.0,0.00010958,2]
[353956475,1740167439896,-500.0,0.00010958,2]
[353956476,1740167439905,-1145.31,0.00010958,2]
[353956477,1740167439914,-524.1,0.00010958,2]
[353956478,1740167439923,-500.0,0.00010958,2]
[353956479,1740167439935,-500.0,0.00010958,2]
[353956480,1740167439944,-680.76,0.00010958,2]
[353956481,1740167439954,-799.15,0.00010958,2]
[353956482,1740167439963,-1285.44,0.00010958,2]
[353956483,1740167439972,-1586.6,0.00010958,2]
[353956484,1740167439981,-500.0,0.00010958,2]
[353956485,1740167439991,-514.98,0.00010958,2]
[353956486,1740167440000,-342.51441661,0.00010958,2]
[353956487,1740167440016,-284.47558339,0.00010958,2]
[353956488,1740167440030,-193.55697161,0.00010958,2]
[353956489,1740167440042,-493.44302839,0.00010958,2]
[353956490,1740167440051,-390.01676383,0.00010958,2]
[353956491,1740167440062,-373.04323617,0.00010958,2]
[353956492,1740167440071,-500.0,0.00010958,2]
[353956493,1740167440080,-85.46631583,0.00010958,2]
[353956494,1740167440104,-750.77368417,0.00010958,2]
[353956495,1740167440114,-500.0,0.00010958,2]
[353956496,1740167440123,-976.83,0.00010958,2]
[353956497,1740167440132,-741.66,0.00010958,2]
[353956498,1740167440142,-500.0,0.00010958,2]
[353956499,1740167440150,-500.0,0.00010958,2]
[353956500,1740167440160,-500.0,0.00010958,2]
[353956501,1740167440170,-1826.83,0.00010958,2]
[353956502,1740167440181,-1648.87,0.00010958,2]
[353956503,1740167440190,-500.0,0.00010958,2]
[353956504,1740167440200,-822.42,0.00010958,2]
[353956505,1740167440209,-500.0,0.00010958,2]
[353956506,1740167440218,-1061.87,0.00010958,2]
[353956507,1740167440227,-617.3093797,0.00010958,2]
[353956508,1740167440236,-769.98,0.00010958,2]
[353956509,1740167440245,-1122.92,0.00010958,2]
[353956510,1740167440254,-818.95,0.00010958,2]
[353956511,1740167440263,-652.38,0.00010958,2]
[353956512,1740167440272,-500.0,0.00010958,2]
[353956513,1740167440281,-569.49,0.00010958,2]
[353956514,1740167440290,-502.62305721,0.00010958,2]
[353956515,1740167440299,-500.0,0.00010958,2]
[353956516,1740167440308,-500.0,0.00010958,2]
[353956517,1740167440317,-778.95,0.00010958,2]
[353956518,1740167440327,-500.0,0.00010958,2]
[353956519,1740167440336,-500.0,0.00010958,2]
[353956520,1740167440346,-500.0,0.00010958,2]
[353956521,1740167440355,-1811.38,0.00010958,2]
[353956522,1740167440364,-575.2,0.00010958,2]
[353956523,1740167440375,-982.85,0.00010958,2]
[353956524,1740167440388,-717.22,0.00010958,2]
[353956525,1740167440397,-1375.27,0.00010958,2]
[353956526,1740167440408,-893.56,0.00010958,2]
[353956527,1740167440417,-532.46366584,0.00010958,2]
[353956528,1740167440427,-500.0,0.00010958,2]
[353956529,1740167440438,-500.0,0.00010958,2]
[353956530,1740167440447,-809.42,0.00010958,2]
[353956531,1740167440457,-500.0,0.00010958,2]
[353956532,1740167440466,-1319.65,0.00010958,2]
[353956533,1740167440475,-1036.04,0.00010958,2]
[353956534,1740167440484,-1242.28,0.00010958,2]
[353956535,1740167440494,-617.56,0.00010958,2]
[353956536,1740167440503,-500.0,0.00010958,2]
[353956537,1740167440512,-625.0,0.00010958,2]
[353956538,1740167440522,-500.0,0.00010958,2]
[353956539,1740167440530,-948.12,0.00010958,2]
[353956540,1740167440539,-500.0,0.00010958,2]
[353956541,1740167440549,-1022.36,0.00010958,2]
[353956542,1740167440558,-500.0,0.00010958,2]
[353956543,1740167440567,-854.65,0.00010958,2]
[353956544,1740167440577,-500.0,0.00010958,2]
[353956545,1740167440586,-500.0,0.00010958,2]
[353956546,1740167440595,-969.71,0.00010958,2]
[353956547,1740167440605,-926.96,0.00010958,2]
[353956548,1740167440614,-500.0,0.00010958,2]
[353956549,1740167440625,-500.0,0.00010958,2]
[353956550,1740167440634,-810.4,0.00010958,2]
[353956551,1740167440643,-500.0,0.00010958,2]
[353956552,1740167440653,-615.07,0.00010958,2]
[353956553,1740167440662,-500.0,0.00010958,2]
[353956554,1740167440672,-1192.04,0.00010958,2]
[353956555,1740167440683,-508.53,0.00010958,2]
[353956556,1740167440698,-672.33,0.00010958,2]
[353956557,1740167440707,-500.0,0.00010958,2]
[353956558,1740167440716,-644.99821761,0.00010958,2]
[353956559,1740167440725,-1908.9,0.00010958,2]
[353956560,1740167440735,-307.10947683,0.00010958,2]
[353956561,1740167440745,-1359.44,0.00010958,2]
[353956562,1740167440754,-500.0,0.00010958,2]
[353956563,1740167440764,-902.67,0.00010958,2]
[353956564,1740167440775,-1423.88,0.00010958,2]
[353956565,1740167440786,-717.68,0.00010958,2]
[353956566,1740167440795,-500.0,0.00010958,2]
[353956567,1740167440805,-1211.55,0.00010958,2]
[353956568,1740167440815,-2188.61,0.00010958,2]
[353956569,1740167440824,-1759.15,0.00010958,2]
[353956570,1740167440834,-697.64,0.00010958,2]
[353956571,1740167440843,-986.02,0.00010958,2]
[353956572,1740167440853,-1662.17,0.00010958,2]
[353956573,1740167440862,-169.65197109,0.00010958,2]
[353956574,1740167440872,-500.0,0.00010958,2]
[353956575,1740167440881,-1297.0,0.00010958,2]
[353956576,1740167440891,-500.0,0.00010958,2]
[353956577,1740167440901,-861.11,0.00010958,2]
[353956578,1740167440910,-925.5,0.00010958,2]
[353956579,1740167440920,-1460.13,0.00010958,2]
[353956580,1740167440931,-596.42,0.00010958,2]
[353956581,1740167440941,-500.0,0.00010958,2]
[353956582,1740167440951,-500.0,0.00010958,2]
[353956583,1740167440960,-500.0,0.00010958,2]
[353956584,1740167440970,-1381.05,0.00010958,2]
[353956585,1740167440980,-500.0,0.00010958,2]
[353956586,1740167440990,-707.75,0.00010958,2]
[353956587,1740167441000,-905.98,0.00010958,2]
[353956588,1740167441010,-511.21,0.00010958,2]
[353956589,1740167441019,-500.0,0.00010958,2]
[353956590,1740167441029,-645.45,0.00010958,2]
[353956591,1740167441039,-600.11,0.00010958,2]
[353956592,1740167441049,-1101.61,0.00010958,2]
[353956593,1740167441059,-1349.02,0.00010958,2]
[353956594,1740167441069,-1210.32,0.00010958,2]
[353956595,1740167441079,-500.0,0.00010958,2]
[353956596,1740167441089,-599.64,0.00010958,2]
[353956597,1740167441099,-500.0,0.00010958,2]
[353956598,1740167441108,-794.86,0.00010958,2]
[353956599,1740167441118,-901.02,0.00010958,2]
[353956600,1740167441127,-500.0,0.00010958,2]
[353956601,1740167441136,-856.94,0.00010958,2]
[353956602,1740167441147,-500.0,0.00010958,2]
[353956603,1740167441156,-500.0,0.00010958,2]
[353956604,1740167441167,-500.0,0.00010958,2]
[353956605,1740167441177,-964.92,0.00010958,2]
[353956606,1740167441188,-500.0,0.00010958,2]
[353956607,1740167441197,-1325.37,0.00010958,2]
[353956608,1740167441207,-500.0,0.00010958,2]
[353956609,1740167441216,-1325.36,0.00010958,2]
[353956610,1740167441226,-500.0,0.00010958,2]
[353956611,1740167441235,-500.0,0.00010958,2]
[353956612,1740167441245,-500.0,0.00010958,2]
[353956613,1740167441254,-500.0,0.00010958,2]
[353956614,1740167441263,-777.44,0.00010958,2]
[353956615,1740167441273,-1387.99,0.00010958,2]
[353956616,1740167441282,-500.0,0.00010958,2]
[353956617,1740167441291,-500.0,0.00010958,2]
[353956618,1740167441301,-500.0,0.00010958,2]
[353956619,1740167441310,-1448.95,0.00010958,2]
[353956620,1740167441320,-500.0,0.00010958,2]
[353956621,1740167441329,-500.0,0.00010958,2]
[353956622,1740167441339,-908.66,0.00010958,2]
[353956623,1740167441349,-724.59,0.00010958,2]
[353956624,1740167441358,-500.0,0.00010958,2]
[353956625,1740167441367,-857.07,0.00010958,2]
[353956626,1740167441375,-825.21,0.00010958,2]
[353956627,1740167441385,-874.13,0.00010958,2]
[353956628,1740167441394,-500.0,0.00010958,2]
[353956629,1740167441403,-500.0,0.00010958,2]
[353956630,1740167441412,-500.0,0.00010958,2]
[353956631,1740167441421,-500.0,0.00010958,2]
[353956632,1740167441430,-1679.67,0.00010958,2]
[353956633,1740167441440,-500.0,0.00010958,2]
[353956634,1740167441449,-500.0,0.00010958,2]
[353956635,1740167441459,-500.0,0.00010958,2]
[353956636,1740167441469,-500.0,0.00010958,2]
[353956637,1740167441480,-500.0,0.00010958,2]
[353956638,1740167441489,-1120.09,0.00010958,2]
[353956639,1740167441499,-500.0,0.00010958,2]
[353956640,1740167441508,-684.04,0.00010958,2]